{"text_format":"1","workbook":"xlsx","n_sheets":4,"sheets":["注意事項","別紙１－③ (ＪＶ用)","別紙１－③ (ＪＶ用（代理人（法人））)","別紙１－③ (ＪＶ用（代理人（個人））)"],"not_rendered":{"charts":0,"images":0,"macros":1,"external_links":0,"defined_names":4,"comments":3,"pivot_tables":0},"unopened":[],"bounds":{"document_bytes":16777216,"sheet_cells":100000,"rows_first":2000,"rows_last":500,"rows_between":2000,"halvings":0,"cell_chars":16384,"cell_head_chars":4096},"cells_cut":0,"cells_raw":0,"read":"whole","date_system":"1900"}

{"sheet":"注意事項","index":0,"n_rows":23,"n_cols":12,"rows_kept":23,"cut":false,"hidden":false,"merged":[[16,0,16,8],[3,11,3,21],[5,11,5,21]]}
[]
["・別紙１－③ (ＪＶ用)",null,null,null,null,null,null,null,null,null,null,"←ＩＣカードの名義が「代表者」の場合"]
[]
["・別紙１－③ (ＪＶ用（代理人（法人））)",null,null,null,null,null,null,null,null,null,null,"←ＩＣカードの名義が代表者から委任された代理人（法人）の場合\n（年間委任状や当該案件に係る委任状の提出が必要）"]
[]
["・別紙１－③ (ＪＶ用（代理人（個人））)",null,null,null,null,null,null,null,null,null,null,"←ＩＣカードの名義が代表者から委任された代理人（個人）の場合\n（年間委任状や当該案件に係る委任状の提出が必要）"]
[]
["共同企業体で入札参加する場合は、"]
[]
["上記いずれかに必要事項を入力後、"]
[]
["ＰＤＦで保存の上、入札金額送信の際、"]
[]
["内訳書と同時に提出してください"]
[]
[]
["＜電子入札案件に「紙参加」する場合＞"]
["　事前に必要事項を記入の上、開札日に持参し、落札者と"]
["なった場合に、契約担当課へ提出してください。"]
["　なお、総合評価落札方式及び事後審査型入札の場合は、"]
["入札書等と同時に提出してください。"]
["　また、郵送の場合は、入札書、内訳書とともに同封して"]
["ください。"]

{"sheet":"別紙１－③ (ＪＶ用)","index":1,"n_rows":52,"n_cols":49,"rows_kept":52,"cut":false,"hidden":false,"merged":[[33,9,34,25],[10,28,11,30],[10,31,11,35],[21,28,25,34],[26,6,29,6],[26,7,27,8],[9,15,9,19],[9,21,9,25],[11,1,11,7],[11,8,11,26],[14,1,14,3],[9,8,9,14],[15,1,15,3],[15,7,15,25],[18,1,19,3],[21,6,24,6],[21,7,22,8],[21,9,22,25],[23,7,24,8],[23,9,24,25],[7,8,7,14],[7,15,7,25],[7,30,8,34],[7,28,8,29],[8,8,8,14],[8,15,8,25],[0,37,0,39],[1,29,2,30],[1,37,1,39],[4,29,5,30],[6,8,6,14],[6,15,6,25],[0,0,0,26],[41,0,45,1],[42,2,44,4],[42,5,42,9],[42,11,42,25],[43,5,43,9],[43,11,43,15],[43,17,43,25],[44,5,44,9],[44,11,44,14],[44,16,44,19],[44,21,44,23],[31,1,34,4],[36,1,39,4],[21,1,24,4],[14,7,14,10],[36,6,39,6],[36,7,37,8],[36,9,37,25],[38,7,39,8],[38,9,39,25],[26,9,27,25],[28,7,29,8],[28,9,29,25],[31,6,34,6],[31,7,32,8],[31,9,32,25],[33,7,34,8]]}
["契約に関する申出書",null,null,null,null,null,null,null,null,null,null,null,null,null,null,null,null,null,null,null,null,null,null,null,null,null,null,"はじめに選択↓",null,null,null,"契約区分",null,null,null,null,null,"入力箇所",null,null,null,null,null,null,"発注機関名","支出負担行為担当者名","代表アドレス","電話"]
[null,null,null,null,null,null,null,null,null,null,null,null,null,null,null,null,null,null,null,null,null,null,null,null,null,null,null,null,null,null,null,null,1,"工事",null,null,null,"選択箇所",null,null,null,null,null,1,"空知調整","空知総合振興局長","sorachi.chosei1@pref.hokkaido.lg.jp","0126-20-0086"]
[null,null,null,null,null,null,null,null,null,null,null,null,null,null,null,null,null,null,null,{"$f":"IF($AD$2=\"\",\"\",\"令和\")","v":""},{"$f":"IF($AF$11<>\"\",TEXT($AF$11,\"e\"),\"\")","v":""},"年",{"$f":"IF($AF$11<>\"\",TEXT($AF$11,\"m\"),\"\")","v":""},"月",{"$f":"IF($AF$11<>\"\",TEXT($AF$11,\"d\"),\"\")","v":""},"日",null,null,null,null,null,null,2,"委託",null,null,null,null,null,null,null,null,null,2,"石狩調整","石狩振興局長","ishikari.chosei1@pref.hokkaido.lg.jp","011-204-5850"]
[null,null,null,null,null,null,null,null,null,null,null,null,null,null,null,null,null,null,null,null,null,null,null,null,null,null,null,"次に選択↓",null,null,null,"発注機関",null,null,null,null,null,null,null,null,null,null,null,3,"後志農振","後志総合振興局長","shiribeshi.nousonshinkou@pref.hokkaido.lg.jp","0136-23-1891"]
[null,{"$f":"IF(AD5=\"\",\"（支出負担行為担当者）\",VLOOKUP(AD5,$AS$2:$AT$16,2,FALSE))&\"　様\"","v":"（支出負担行為担当者）　様"},null,null,null,null,null,null,null,null,null,null,null,null,null,null,null,null,null,null,null,null,null,null,null,null,null,null,null,null,null,null,null,null,null,null,null,null,null,null,null,null,null,4,"胆振農振","胆振総合振興局長","iburi.nousonshinkou1@pref.hokkaido.lg.jp","0143-24-9817"]
[null,null,null,null,null,null,null,null,null,null,null,null,null,null,null,null,null,null,null,null,null,null,null,null,null,null,null,null,null,null,null,null,null,null,null,null,null,null,null,null,null,null,null,5,"日高農振","日高振興局長","hidaka.nousonshinkou@pref.hokkaido.lg.jp","0146-22-9353"]
[null,null,null,null,null,null,null,null,"ＪＶ名",null,null,null,null,null,null,null,null,null,null,null,null,null,null,null,null,null,null,"最後に入力↓",null,null,null,null,null,null,null,null,null,null,null,null,null,null,null,6,"渡島農振","渡島総合振興局長","oshima.nousonshinkouka@pref.hokkaido.lg.jp","0138-83-7238"]
[null,null,null,null,null,null,null,"代表者","住所",null,null,null,null,null,null,null,null,null,null,null,null,null,null,null,null,null,null,null,"開札日",null,null,null,null,null,null,null,null,null,null,null,null,null,null,7,"檜山農振","檜山振興局長","hiyama.nousonshinkou1@pref.hokkaido.lg.jp","0139-52-6601"]
[null,null,null,null,null,null,null,null,"商号又は名称",null,null,null,null,null,null,null,null,null,null,null,null,null,null,null,null,null,null,null,null,null,null,null,null,null,null,null,null,null,null,null,null,null,null,8,"上川調整","上川総合振興局長","kamikawa.chosei1@pref.hokkaido.lg.jp","0166-46-5965"]
[null,null,null,null,null,null,null,null,"代表者役職・氏名",null,null,null,null,null,null,null,null,null,null,null,null,null,null,null,null,null,null,null,null,null,null,null,null,null,null,null,null,null,null,null,null,null,null,9,"留萌農振","留萌振興局長","rumoi.nousonnsinnkou2@pref.hokkaido.lg.jp","0164-42-8495"]
[null,null,null,null,null,null,null,null,null,null,null,null,null,null,null,null,null,null,null,null,null,null,null,null,null,null,null,null,"申出書作成日",null,null,null,null,null,null,null,null,null,null,null,null,null,null,10,"宗谷農振","宗谷総合振興局長","soya.chosei1@pref.hokkaido.lg.jp","0162-33-2535"]
[null,{"$f":"AE8","v":"00:00:00"},null,null,null,null,null,null,{"$f":"\"に開札予定の次の\"&IF(AD2=\"工事\",AH2,AH3)&\"について、落札者となった\"","v":"に開札予定の次の委託について、落札者となった"},null,null,null,null,null,null,null,null,null,null,null,null,null,null,null,null,null,null,null,null,null,null,null,null,null,null,null,null,null,null,null,null,null,null,11,"オホ調整","オホーツク総合振興局長","okhotsk.chosei1@pref.hokkaido.lg.jp","0152-41-0670"]
["場合の契約方法を、次のとおり申し出ます。",null,null,null,null,null,null,null,null,null,null,null,null,null,null,null,null,null,null,null,null,null,null,null,null,null,null,null,null,null,null,null,null,null,null,null,null,null,null,null,null,null,null,12,"十勝調整","十勝総合振興局長","tokachi.chosei1@pref.hokkaido.lg.jp","0155-27-8619"]
[null,null,null,null,null,null,null,null,null,null,null,null,null,null,null,null,null,null,null,null,null,null,null,null,null,null,null,null,null,null,null,null,null,null,null,null,null,null,null,null,null,null,null,13,"釧路農振","釧路総合振興局長","kushiro.tyosei1@pref.hokkaido.lg.jp","0154-43-9231"]
["（",{"$f":"IF(AD2=\"工事\",\"工事番号\",\"業務番号\")","v":"業務番号"},null,null,"）",null,"（",null,null,null,null,"）",null,null,null,null,null,null,null,null,null,null,null,null,null,null,null,null,null,null,null,null,null,null,null,null,null,null,null,null,null,null,null,14,"根室農振","根室振興局長","nemuro.nousonshinkou2@pref.hokkaido.lg.jp","0153-24-5720"]
[null,{"$f":"IF(AD2=\"工事\",\"工事名\",\"業務名\")","v":"業務名"},null,null,null,null,null,null,null,null,null,null,null,null,null,null,null,null,null,null,null,null,null,null,null,null,null,"←案件名",null,null,null,null,null,null,null,null,null,null,null,null,null,null,null,15,"農政部","農政部長","-","-"]
[null,null,null,null,null,null,null,null,null,null,null,null,null,null,null,null,null,null,null,null,null,null,null,null,null,null,null,null,null,null,null,null,null,null,null,null,null,null,null,null,"＜ファイル名用＞"]
[null,null,null,null,null,null,null,null,null,null,null,null,null,null,null,null,null,null,null,null,null,null,null,null,null,null,null,null,null,null,null,null,null,null,null,null,null,null,null,null,null,null,null,"発注機関",{"$f":"AD5","v":0}]
[null,"契約方法\n等の申出",null,null,null,null,null,"紙での契約を希望します。",null,null,null,null,null,null,null,{"$f":"IF(AND($AW$20=TRUE,$AW$21=TRUE),\"←二重チェックされております。\",\"\")","v":""},null,null,null,null,null,null,null,null,null,null,null,"←どちらかにチェックしてください",null,null,null,null,null,null,null,null,null,null,null,null,null,null,null,"開札日",{"$f":"MONTH(AE8)&\"月\"&DAY(AE8)&\"日\"","v":"1月0日"},null,null,null,"チェック"]
[null,null,null,null,null,null,null,"電子契約を希望します。",null,null,null,null,null,null,null,{"$f":"IF(AND($AW$20=TRUE,$AW$21=TRUE),\"←二重チェックされております。\",\"\")","v":""},null,null,null,null,null,null,null,null,null,null,null,null,null,null,null,null,null,null,null,null,null,null,null,null,null,null,null,"整理番号",{"$f":"H15","v":0},null,null,"紙契約",false]
[null,null,null,null,null,null,null,"なお、契約書送付先のメールアドレス等は、次のとおりです。",null,null,null,null,null,null,null,null,null,null,null,null,null,null,null,null,null,null,null,null,null,null,null,null,null,null,null,null,null,null,null,null,null,null,null,"入札参加者名",{"$f":"P7","v":0},null,null,"電子契約",false]
[null,"（代表者）",null,null,null,null,"締結\n権限者","氏名",null,null,null,null,null,null,null,null,null,null,null,null,null,null,null,null,null,null,null,null,"・発注者から契約担当→締結権限者の順に署名依頼のメールが届きます。\n・締結権限者のみの記載でも契約締結は可能です。",null,null,null,null,null,null,null,null,null,null,null,null,null,null,"タイトル","契約に関する申出書"]
[]
[null,null,null,null,null,null,null,"メール\nアドレス"]
[]
[]
[null,null,null,null,null,null,"契約担当者","氏名"]
[]
[null,null,null,null,null,null,null,"メール\nアドレス"]
[]
[]
[null,"（構成員1）",null,null,null,null,"締結\n権限者","氏名"]
[]
[null,null,null,null,null,null,null,"メール\nアドレス"]
[]
[]
[null,"（構成員2）",null,null,null,null,"締結\n権限者","氏名"]
[]
[null,null,null,null,null,null,null,"メール\nアドレス"]
[]
[]
["連絡先"]
[null,null,"担当者",null,null,"（所属）"]
[null,null,null,null,null,"（職・氏名）",null,null,null,null,null,null,null,null,null,null,"・"]
[null,null,null,null,null,"（電話番号）",null,null,null,null,null,null,null,null,null,"－",null,null,null,null,"－"]
[]
[]
["（留意事項）"]
[null,"※",{"$f":"\"この申出書は、入札金額等の送信時に、\"&IF(AD2=\"工事\",\"工事\",\"委託\")&\"費内訳書と併せて提出してください。\"","v":"この申出書は、入札金額等の送信時に、委託費内訳書と併せて提出してください。"}]
[null,null,"なお、添付漏れの場合でも、入札書が無効となることはありませんが、落札者の決定後、"]
[null,null,"速やかに、契約締結続きを行う必要があるため、忘れずに提出してください。"]
[null,"※","紙参加の場合は、必要事項を記入の上、開札日に持参してください。"]

{"sheet":"別紙１－③ (ＪＶ用（代理人（法人））)","index":2,"n_rows":55,"n_cols":49,"rows_kept":55,"cut":false,"hidden":false,"merged":[[6,8,6,14],[6,15,6,25],[0,0,0,26],[0,37,0,39],[1,29,2,30],[1,37,1,39],[4,29,5,30],[7,28,8,29],[7,30,8,34],[11,8,11,14],[11,15,11,25],[14,1,14,7],[14,8,14,26],[12,15,12,19],[12,21,12,25],[7,8,7,14],[7,15,7,25],[8,8,8,14],[8,15,8,25],[9,8,9,14],[9,15,9,19],[9,21,9,25],[10,15,10,25],[17,1,17,3],[17,7,17,10],[18,1,18,3],[18,7,18,25],[20,27,21,36],[21,1,22,3],[24,1,27,4],[24,6,27,6],[24,7,25,8],[24,9,25,25],[26,7,27,8],[26,9,27,25],[29,6,32,6],[29,7,30,8],[29,9,30,25],[31,7,32,8],[31,9,32,25],[39,7,40,8],[39,9,40,25],[41,7,42,8],[41,9,42,25],[34,1,37,4],[34,6,37,6],[34,7,35,8],[34,9,35,25],[36,7,37,8],[36,9,37,25],[10,28,11,30],[10,31,11,35],[24,28,28,34],[47,21,47,23],[44,0,48,1],[45,2,47,4],[45,5,45,9],[45,11,45,25],[46,5,46,9],[46,11,46,15],[46,17,46,25],[47,5,47,9],[47,11,47,14],[47,16,47,19],[39,1,42,4],[39,6,42,6]]}
["契約に関する申出書",null,null,null,null,null,null,null,null,null,null,null,null,null,null,null,null,null,null,null,null,null,null,null,null,null,null,"はじめに選択↓",null,null,null,"契約区分",null,null,null,null,null,"入力箇所",null,null,null,null,null,null,{"$f":"'別紙１－③ (ＪＶ用)'!AS1","v":"発注機関名"},{"$f":"'別紙１－③ (ＪＶ用)'!AT1","v":"支出負担行為担当者名"},{"$f":"'別紙１－③ (ＪＶ用)'!AU1","v":"代表アドレス"},{"$f":"'別紙１－③ (ＪＶ用)'!AV1","v":"電話"}]
[null,null,null,null,null,null,null,null,null,null,null,null,null,null,null,null,null,null,null,null,null,null,null,null,null,null,null,null,null,null,null,null,1,"工事",null,null,null,"選択箇所",null,null,null,null,null,{"$f":"'別紙１－③ (ＪＶ用)'!AR2","v":1},{"$f":"'別紙１－③ (ＪＶ用)'!AS2","v":"空知調整"},{"$f":"'別紙１－③ (ＪＶ用)'!AT2","v":"空知総合振興局長"},{"$f":"'別紙１－③ (ＪＶ用)'!AU2","v":"sorachi.chosei1@pref.hokkaido.lg.jp"},{"$f":"'別紙１－③ (ＪＶ用)'!AV2","v":"0126-20-0086"}]
[null,null,null,null,null,null,null,null,null,null,null,null,null,null,null,null,null,null,null,{"$f":"IF($AD$2=\"\",\"\",\"令和\")","v":""},{"$f":"IF($AF$11<>\"\",TEXT($AF$11,\"e\"),\"\")","v":""},"年",{"$f":"IF($AF$11<>\"\",TEXT($AF$11,\"m\"),\"\")","v":""},"月",{"$f":"IF($AF$11<>\"\",TEXT($AF$11,\"d\"),\"\")","v":""},"日",null,null,null,null,null,null,2,"委託",null,null,null,null,null,null,null,null,null,{"$f":"'別紙１－③ (ＪＶ用)'!AR3","v":2},{"$f":"'別紙１－③ (ＪＶ用)'!AS3","v":"石狩調整"},{"$f":"'別紙１－③ (ＪＶ用)'!AT3","v":"石狩振興局長"},{"$f":"'別紙１－③ (ＪＶ用)'!AU3","v":"ishikari.chosei1@pref.hokkaido.lg.jp"},{"$f":"'別紙１－③ (ＪＶ用)'!AV3","v":"011-204-5850"}]
[null,null,null,null,null,null,null,null,null,null,null,null,null,null,null,null,null,null,null,null,null,null,null,null,null,null,null,"次に選択↓",null,null,null,"発注機関",null,null,null,null,null,null,null,null,null,null,null,{"$f":"'別紙１－③ (ＪＶ用)'!AR4","v":3},{"$f":"'別紙１－③ (ＪＶ用)'!AS4","v":"後志農振"},{"$f":"'別紙１－③ (ＪＶ用)'!AT4","v":"後志総合振興局長"},{"$f":"'別紙１－③ (ＪＶ用)'!AU4","v":"shiribeshi.nousonshinkou@pref.hokkaido.lg.jp"},{"$f":"'別紙１－③ (ＪＶ用)'!AV4","v":"0136-23-1891"}]
[null,{"$f":"IF(AD5=\"\",\"（支出負担行為担当者）\",VLOOKUP(AD5,$AS$2:$AT$16,2,FALSE))&\"　様\"","v":"（支出負担行為担当者）　様"},null,null,null,null,null,null,null,null,null,null,null,null,null,null,null,null,null,null,null,null,null,null,null,null,null,null,null,null,null,null,null,null,null,null,null,null,null,null,null,null,null,{"$f":"'別紙１－③ (ＪＶ用)'!AR5","v":4},{"$f":"'別紙１－③ (ＪＶ用)'!AS5","v":"胆振農振"},{"$f":"'別紙１－③ (ＪＶ用)'!AT5","v":"胆振総合振興局長"},{"$f":"'別紙１－③ (ＪＶ用)'!AU5","v":"iburi.nousonshinkou1@pref.hokkaido.lg.jp"},{"$f":"'別紙１－③ (ＪＶ用)'!AV5","v":"0143-24-9817"}]
[null,null,null,null,null,null,null,null,null,null,null,null,null,null,null,null,null,null,null,null,null,null,null,null,null,null,null,null,null,null,null,null,null,null,null,null,null,null,null,null,null,null,null,{"$f":"'別紙１－③ (ＪＶ用)'!AR6","v":5},{"$f":"'別紙１－③ (ＪＶ用)'!AS6","v":"日高農振"},{"$f":"'別紙１－③ (ＪＶ用)'!AT6","v":"日高振興局長"},{"$f":"'別紙１－③ (ＪＶ用)'!AU6","v":"hidaka.nousonshinkou@pref.hokkaido.lg.jp"},{"$f":"'別紙１－③ (ＪＶ用)'!AV6","v":"0146-22-9353"}]
[null,null,null,null,null,null,null,null,"ＪＶ名",null,null,null,null,null,null,null,null,null,null,null,null,null,null,null,null,null,null,"最後に入力↓",null,null,null,null,null,null,null,null,null,null,null,null,null,null,null,{"$f":"'別紙１－③ (ＪＶ用)'!AR7","v":6},{"$f":"'別紙１－③ (ＪＶ用)'!AS7","v":"渡島農振"},{"$f":"'別紙１－③ (ＪＶ用)'!AT7","v":"渡島総合振興局長"},{"$f":"'別紙１－③ (ＪＶ用)'!AU7","v":"oshima.nousonshinkouka@pref.hokkaido.lg.jp"},{"$f":"'別紙１－③ (ＪＶ用)'!AV7","v":"0138-83-7238"}]
[null,null,null,null,null,null,null,"代表者","住所",null,null,null,null,null,null,null,null,null,null,null,null,null,null,null,null,null,null,null,"開札日",null,null,null,null,null,null,null,null,null,null,null,null,null,null,{"$f":"'別紙１－③ (ＪＶ用)'!AR8","v":7},{"$f":"'別紙１－③ (ＪＶ用)'!AS8","v":"檜山農振"},{"$f":"'別紙１－③ (ＪＶ用)'!AT8","v":"檜山振興局長"},{"$f":"'別紙１－③ (ＪＶ用)'!AU8","v":"hiyama.nousonshinkou1@pref.hokkaido.lg.jp"},{"$f":"'別紙１－③ (ＪＶ用)'!AV8","v":"0139-52-6601"}]
[null,null,null,null,null,null,null,null,"商号又は名称",null,null,null,null,null,null,null,null,null,null,null,null,null,null,null,null,null,null,null,null,null,null,null,null,null,null,null,null,null,null,null,null,null,null,{"$f":"'別紙１－③ (ＪＶ用)'!AR9","v":8},{"$f":"'別紙１－③ (ＪＶ用)'!AS9","v":"上川調整"},{"$f":"'別紙１－③ (ＪＶ用)'!AT9","v":"上川総合振興局長"},{"$f":"'別紙１－③ (ＪＶ用)'!AU9","v":"kamikawa.chosei1@pref.hokkaido.lg.jp"},{"$f":"'別紙１－③ (ＪＶ用)'!AV9","v":"0166-46-5965"}]
[null,null,null,null,null,null,null,null,"代表者役職・氏名",null,null,null,null,null,null,null,null,null,null,null,null,null,null,null,null,null,null,null,null,null,null,null,null,null,null,null,null,null,null,null,null,null,null,{"$f":"'別紙１－③ (ＪＶ用)'!AR10","v":9},{"$f":"'別紙１－③ (ＪＶ用)'!AS10","v":"留萌農振"},{"$f":"'別紙１－③ (ＪＶ用)'!AT10","v":"留萌振興局長"},{"$f":"'別紙１－③ (ＪＶ用)'!AU10","v":"rumoi.nousonnsinnkou2@pref.hokkaido.lg.jp"},{"$f":"'別紙１－③ (ＪＶ用)'!AV10","v":"0164-42-8495"}]
[null,null,null,null,null,null,null,"代理人","住所",null,null,null,null,null,null,null,null,null,null,null,null,null,null,null,null,null,null,null,"申出書作成日",null,null,null,null,null,null,null,null,null,null,null,null,null,null,{"$f":"'別紙１－③ (ＪＶ用)'!AR11","v":10},{"$f":"'別紙１－③ (ＪＶ用)'!AS11","v":"宗谷農振"},{"$f":"'別紙１－③ (ＪＶ用)'!AT11","v":"宗谷総合振興局長"},{"$f":"'別紙１－③ (ＪＶ用)'!AU11","v":"soya.chosei1@pref.hokkaido.lg.jp"},{"$f":"'別紙１－③ (ＪＶ用)'!AV11","v":"0162-33-2535"}]
[null,null,null,null,null,null,null,null,"商号又は名称",null,null,null,null,null,null,null,null,null,null,null,null,null,null,null,null,null,null,null,null,null,null,null,null,null,null,null,null,null,null,null,null,null,null,{"$f":"'別紙１－③ (ＪＶ用)'!AR12","v":11},{"$f":"'別紙１－③ (ＪＶ用)'!AS12","v":"オホ調整"},{"$f":"'別紙１－③ (ＪＶ用)'!AT12","v":"オホーツク総合振興局長"},{"$f":"'別紙１－③ (ＪＶ用)'!AU12","v":"okhotsk.chosei1@pref.hokkaido.lg.jp"},{"$f":"'別紙１－③ (ＪＶ用)'!AV12","v":"0152-41-0670"}]
[null,null,null,null,null,null,null,null,"代表者役職・氏名",null,null,null,null,null,null,null,null,null,null,null,null,null,null,null,null,null,null,null,null,null,null,null,null,null,null,null,null,null,null,null,null,null,null,{"$f":"'別紙１－③ (ＪＶ用)'!AR13","v":12},{"$f":"'別紙１－③ (ＪＶ用)'!AS13","v":"十勝調整"},{"$f":"'別紙１－③ (ＪＶ用)'!AT13","v":"十勝総合振興局長"},{"$f":"'別紙１－③ (ＪＶ用)'!AU13","v":"tokachi.chosei1@pref.hokkaido.lg.jp"},{"$f":"'別紙１－③ (ＪＶ用)'!AV13","v":"0155-27-8619"}]
[null,null,null,null,null,null,null,null,null,null,null,null,null,null,null,null,null,null,null,null,null,null,null,null,null,null,null,null,null,null,null,null,null,null,null,null,null,null,null,null,null,null,null,{"$f":"'別紙１－③ (ＪＶ用)'!AR14","v":13},{"$f":"'別紙１－③ (ＪＶ用)'!AS14","v":"釧路農振"},{"$f":"'別紙１－③ (ＪＶ用)'!AT14","v":"釧路総合振興局長"},{"$f":"'別紙１－③ (ＪＶ用)'!AU14","v":"kushiro.tyosei1@pref.hokkaido.lg.jp"},{"$f":"'別紙１－③ (ＪＶ用)'!AV14","v":"0154-43-9231"}]
[null,{"$f":"AE8","v":"00:00:00"},null,null,null,null,null,null,{"$f":"\"に開札予定の次の\"&IF(AD2=\"工事\",AH2,AH3)&\"について、落札者となった\"","v":"に開札予定の次の委託について、落札者となった"},null,null,null,null,null,null,null,null,null,null,null,null,null,null,null,null,null,null,null,null,null,null,null,null,null,null,null,null,null,null,null,null,null,null,{"$f":"'別紙１－③ (ＪＶ用)'!AR15","v":14},{"$f":"'別紙１－③ (ＪＶ用)'!AS15","v":"根室農振"},{"$f":"'別紙１－③ (ＪＶ用)'!AT15","v":"根室振興局長"},{"$f":"'別紙１－③ (ＪＶ用)'!AU15","v":"nemuro.nousonshinkou2@pref.hokkaido.lg.jp"},{"$f":"'別紙１－③ (ＪＶ用)'!AV15","v":"0153-24-5720"}]
["場合の契約方法を、次のとおり申し出ます。",null,null,null,null,null,null,null,null,null,null,null,null,null,null,null,null,null,null,null,null,null,null,null,null,null,null,null,null,null,null,null,null,null,null,null,null,null,null,null,null,null,null,{"$f":"'別紙１－③ (ＪＶ用)'!AR16","v":15},{"$f":"'別紙１－③ (ＪＶ用)'!AS16","v":"農政部"},{"$f":"'別紙１－③ (ＪＶ用)'!AT16","v":"農政部長"},{"$f":"'別紙１－③ (ＪＶ用)'!AU16","v":"-"},{"$f":"'別紙１－③ (ＪＶ用)'!AV16","v":"-"}]
[null,null,null,null,null,null,null,null,null,null,null,null,null,null,null,null,null,null,null,null,null,null,null,null,null,null,null,null,null,null,null,null,null,null,null,null,null,null,null,null,"＜ファイル名用＞"]
["（",{"$f":"IF(AD2=\"工事\",\"工事番号\",\"業務番号\")","v":"業務番号"},null,null,"）",null,"（",null,null,null,null,"）",null,null,null,null,null,null,null,null,null,null,null,null,null,null,null,null,null,null,null,null,null,null,null,null,null,null,null,null,null,null,null,"発注機関",{"$f":"AD5","v":0}]
[null,{"$f":"IF(AD2=\"工事\",\"工事名\",\"業務名\")","v":"業務名"},null,null,null,null,null,null,null,null,null,null,null,null,null,null,null,null,null,null,null,null,null,null,null,null,null,"←案件名",null,null,null,null,null,null,null,null,null,null,null,null,null,null,null,"開札日",{"$f":"MONTH(AE8)&\"月\"&DAY(AE8)&\"日\"","v":"1月0日"},null,null,null,"チェック"]
[null,null,null,null,null,null,null,null,null,null,null,null,null,null,null,null,null,null,null,null,null,null,null,null,null,null,null,null,null,null,null,null,null,null,null,null,null,null,null,null,null,null,null,"整理番号",{"$f":"H18","v":0},null,null,"紙契約",false]
[null,null,null,null,null,null,null,null,null,null,null,null,null,null,null,null,null,null,null,null,null,null,null,null,null,null,null,"←どちらかにチェックしてください",null,null,null,null,null,null,null,null,null,null,null,null,null,null,null,"入札参加者名",{"$f":"P7","v":0},null,null,"電子契約",false]
[null,"契約方法\n等の申出",null,null,null,null,null,"紙での契約を希望します。",null,null,null,null,null,null,null,{"$f":"IF(AND($AW$20=TRUE,$AW$21=TRUE),\"←二重チェックされております。\",\"\")","v":""},null,null,null,null,null,null,null,null,null,null,null,null,null,null,null,null,null,null,null,null,null,null,null,null,null,null,null,"タイトル","契約に関する申出書"]
[null,null,null,null,null,null,null,"電子契約を希望します。",null,null,null,null,null,null,null,{"$f":"IF(AND($AW$20=TRUE,$AW$21=TRUE),\"←二重チェックされております。\",\"\")","v":""}]
[null,null,null,null,null,null,null,"なお、契約書送付先のメールアドレス等は、次のとおりです。"]
[null,"（代表者）",null,null,null,null,"締結\n権限者","氏名",null,null,null,null,null,null,null,null,null,null,null,null,null,null,null,null,null,null,null,null,"・発注者から契約担当→締結権限者の順に署名依頼のメールが届きます。\n・締結権限者のみの記載でも契約締結は可能です。"]
[]
[null,null,null,null,null,null,null,"メール\nアドレス"]
[]
[]
[null,null,null,null,null,null,"契約担当者","氏名"]
[]
[null,null,null,null,null,null,null,"メール\nアドレス"]
[]
[]
[null,"（構成員1）",null,null,null,null,"締結\n権限者","氏名"]
[]
[null,null,null,null,null,null,null,"メール\nアドレス"]
[]
[]
[null,"（構成員2）",null,null,null,null,"締結\n権限者","氏名"]
[]
[null,null,null,null,null,null,null,"メール\nアドレス"]
[]
[]
["連絡先"]
[null,null,"担当者",null,null,"（所属）"]
[null,null,null,null,null,"（職・氏名）",null,null,null,null,null,null,null,null,null,null,"・"]
[null,null,null,null,null,"（電話番号）",null,null,null,null,null,null,null,null,null,"－",null,null,null,null,"－"]
[]
[]
["（留意事項）"]
[null,"※",{"$f":"\"この申出書は、入札金額等の送信時に、\"&IF(AD2=\"工事\",\"工事\",\"委託\")&\"費内訳書と併せて提出してください。\"","v":"この申出書は、入札金額等の送信時に、委託費内訳書と併せて提出してください。"}]
[null,null,"なお、添付漏れの場合でも、入札書が無効となることはありませんが、落札者の決定後、"]
[null,null,"速やかに、契約締結続きを行う必要があるため、忘れずに提出してください。"]
[null,"※","紙参加の場合は、必要事項を記入の上、開札日に持参してください。"]

{"sheet":"別紙１－③ (ＪＶ用（代理人（個人））)","index":3,"n_rows":55,"n_cols":49,"rows_kept":55,"cut":false,"hidden":false,"merged":[[10,28,11,30],[10,31,11,35],[0,0,0,26],[9,8,9,14],[9,15,9,19],[9,21,9,25],[10,15,10,25],[11,8,11,14],[11,15,11,25],[0,37,0,39],[1,29,2,30],[1,37,1,39],[4,29,5,30],[7,8,7,14],[7,15,7,25],[7,28,8,29],[7,30,8,34],[8,8,8,14],[8,15,8,25],[6,8,6,14],[6,15,6,25],[12,15,12,19],[12,21,12,25],[14,1,14,7],[14,8,14,26],[17,1,17,3],[17,7,17,10],[24,28,28,34],[18,1,18,3],[18,7,18,25],[20,27,21,36],[21,1,22,3],[24,1,27,4],[24,6,27,6],[24,7,25,8],[24,9,25,25],[26,7,27,8],[26,9,27,25],[29,6,32,6],[29,7,30,8],[29,9,30,25],[31,7,32,8],[31,9,32,25],[34,1,37,4],[34,6,37,6],[34,7,35,8],[34,9,35,25],[36,7,37,8],[36,9,37,25],[39,1,42,4],[39,6,42,6],[39,7,40,8],[39,9,40,25],[41,7,42,8],[41,9,42,25],[47,21,47,23],[44,0,48,1],[45,2,47,4],[45,5,45,9],[45,11,45,25],[46,5,46,9],[46,11,46,15],[46,17,46,25],[47,5,47,9],[47,11,47,14],[47,16,47,19]]}
["契約に関する申出書",null,null,null,null,null,null,null,null,null,null,null,null,null,null,null,null,null,null,null,null,null,null,null,null,null,null,"はじめに選択↓",null,null,null,"契約区分",null,null,null,null,null,"入力箇所",null,null,null,null,null,null,{"$f":"'別紙１－③ (ＪＶ用)'!AS1","v":"発注機関名"},{"$f":"'別紙１－③ (ＪＶ用)'!AT1","v":"支出負担行為担当者名"},{"$f":"'別紙１－③ (ＪＶ用)'!AU1","v":"代表アドレス"},{"$f":"'別紙１－③ (ＪＶ用)'!AV1","v":"電話"}]
[null,null,null,null,null,null,null,null,null,null,null,null,null,null,null,null,null,null,null,null,null,null,null,null,null,null,null,null,null,null,null,null,1,"工事",null,null,null,"選択箇所",null,null,null,null,null,{"$f":"'別紙１－③ (ＪＶ用)'!AR2","v":1},{"$f":"'別紙１－③ (ＪＶ用)'!AS2","v":"空知調整"},{"$f":"'別紙１－③ (ＪＶ用)'!AT2","v":"空知総合振興局長"},{"$f":"'別紙１－③ (ＪＶ用)'!AU2","v":"sorachi.chosei1@pref.hokkaido.lg.jp"},{"$f":"'別紙１－③ (ＪＶ用)'!AV2","v":"0126-20-0086"}]
[null,null,null,null,null,null,null,null,null,null,null,null,null,null,null,null,null,null,null,{"$f":"IF($AD$2=\"\",\"\",\"令和\")","v":""},{"$f":"IF($AF$11<>\"\",TEXT($AF$11,\"e\"),\"\")","v":""},"年",{"$f":"IF($AF$11<>\"\",TEXT($AF$11,\"m\"),\"\")","v":""},"月",{"$f":"IF($AF$11<>\"\",TEXT($AF$11,\"d\"),\"\")","v":""},"日",null,null,null,null,null,null,2,"委託",null,null,null,null,null,null,null,null,null,{"$f":"'別紙１－③ (ＪＶ用)'!AR3","v":2},{"$f":"'別紙１－③ (ＪＶ用)'!AS3","v":"石狩調整"},{"$f":"'別紙１－③ (ＪＶ用)'!AT3","v":"石狩振興局長"},{"$f":"'別紙１－③ (ＪＶ用)'!AU3","v":"ishikari.chosei1@pref.hokkaido.lg.jp"},{"$f":"'別紙１－③ (ＪＶ用)'!AV3","v":"011-204-5850"}]
[null,null,null,null,null,null,null,null,null,null,null,null,null,null,null,null,null,null,null,null,null,null,null,null,null,null,null,"次に選択↓",null,null,null,"発注機関",null,null,null,null,null,null,null,null,null,null,null,{"$f":"'別紙１－③ (ＪＶ用)'!AR4","v":3},{"$f":"'別紙１－③ (ＪＶ用)'!AS4","v":"後志農振"},{"$f":"'別紙１－③ (ＪＶ用)'!AT4","v":"後志総合振興局長"},{"$f":"'別紙１－③ (ＪＶ用)'!AU4","v":"shiribeshi.nousonshinkou@pref.hokkaido.lg.jp"},{"$f":"'別紙１－③ (ＪＶ用)'!AV4","v":"0136-23-1891"}]
[null,{"$f":"IF(AD5=\"\",\"（支出負担行為担当者）\",VLOOKUP(AD5,$AS$2:$AT$16,2,FALSE))&\"　様\"","v":"（支出負担行為担当者）　様"},null,null,null,null,null,null,null,null,null,null,null,null,null,null,null,null,null,null,null,null,null,null,null,null,null,null,null,null,null,null,null,null,null,null,null,null,null,null,null,null,null,{"$f":"'別紙１－③ (ＪＶ用)'!AR5","v":4},{"$f":"'別紙１－③ (ＪＶ用)'!AS5","v":"胆振農振"},{"$f":"'別紙１－③ (ＪＶ用)'!AT5","v":"胆振総合振興局長"},{"$f":"'別紙１－③ (ＪＶ用)'!AU5","v":"iburi.nousonshinkou1@pref.hokkaido.lg.jp"},{"$f":"'別紙１－③ (ＪＶ用)'!AV5","v":"0143-24-9817"}]
[null,null,null,null,null,null,null,null,null,null,null,null,null,null,null,null,null,null,null,null,null,null,null,null,null,null,null,null,null,null,null,null,null,null,null,null,null,null,null,null,null,null,null,{"$f":"'別紙１－③ (ＪＶ用)'!AR6","v":5},{"$f":"'別紙１－③ (ＪＶ用)'!AS6","v":"日高農振"},{"$f":"'別紙１－③ (ＪＶ用)'!AT6","v":"日高振興局長"},{"$f":"'別紙１－③ (ＪＶ用)'!AU6","v":"hidaka.nousonshinkou@pref.hokkaido.lg.jp"},{"$f":"'別紙１－③ (ＪＶ用)'!AV6","v":"0146-22-9353"}]
[null,null,null,null,null,null,null,null,"ＪＶ名",null,null,null,null,null,null,null,null,null,null,null,null,null,null,null,null,null,null,"最後に入力↓",null,null,null,null,null,null,null,null,null,null,null,null,null,null,null,{"$f":"'別紙１－③ (ＪＶ用)'!AR7","v":6},{"$f":"'別紙１－③ (ＪＶ用)'!AS7","v":"渡島農振"},{"$f":"'別紙１－③ (ＪＶ用)'!AT7","v":"渡島総合振興局長"},{"$f":"'別紙１－③ (ＪＶ用)'!AU7","v":"oshima.nousonshinkouka@pref.hokkaido.lg.jp"},{"$f":"'別紙１－③ (ＪＶ用)'!AV7","v":"0138-83-7238"}]
[null,null,null,null,null,null,null,"代表者","住所",null,null,null,null,null,null,null,null,null,null,null,null,null,null,null,null,null,null,null,"開札日",null,null,null,null,null,null,null,null,null,null,null,null,null,null,{"$f":"'別紙１－③ (ＪＶ用)'!AR8","v":7},{"$f":"'別紙１－③ (ＪＶ用)'!AS8","v":"檜山農振"},{"$f":"'別紙１－③ (ＪＶ用)'!AT8","v":"檜山振興局長"},{"$f":"'別紙１－③ (ＪＶ用)'!AU8","v":"hiyama.nousonshinkou1@pref.hokkaido.lg.jp"},{"$f":"'別紙１－③ (ＪＶ用)'!AV8","v":"0139-52-6601"}]
[null,null,null,null,null,null,null,null,"商号又は名称",null,null,null,null,null,null,null,null,null,null,null,null,null,null,null,null,null,null,null,null,null,null,null,null,null,null,null,null,null,null,null,null,null,null,{"$f":"'別紙１－③ (ＪＶ用)'!AR9","v":8},{"$f":"'別紙１－③ (ＪＶ用)'!AS9","v":"上川調整"},{"$f":"'別紙１－③ (ＪＶ用)'!AT9","v":"上川総合振興局長"},{"$f":"'別紙１－③ (ＪＶ用)'!AU9","v":"kamikawa.chosei1@pref.hokkaido.lg.jp"},{"$f":"'別紙１－③ (ＪＶ用)'!AV9","v":"0166-46-5965"}]
[null,null,null,null,null,null,null,null,"代表者役職・氏名",null,null,null,null,null,null,null,null,null,null,null,null,null,null,null,null,null,null,null,null,null,null,null,null,null,null,null,null,null,null,null,null,null,null,{"$f":"'別紙１－③ (ＪＶ用)'!AR10","v":9},{"$f":"'別紙１－③ (ＪＶ用)'!AS10","v":"留萌農振"},{"$f":"'別紙１－③ (ＪＶ用)'!AT10","v":"留萌振興局長"},{"$f":"'別紙１－③ (ＪＶ用)'!AU10","v":"rumoi.nousonnsinnkou2@pref.hokkaido.lg.jp"},{"$f":"'別紙１－③ (ＪＶ用)'!AV10","v":"0164-42-8495"}]
[null,null,null,null,null,null,null,"代理人","住所",null,null,null,null,null,null,null,null,null,null,null,null,null,null,null,null,null,null,null,"申出書作成日",null,null,null,null,null,null,null,null,null,null,null,null,null,null,{"$f":"'別紙１－③ (ＪＶ用)'!AR11","v":10},{"$f":"'別紙１－③ (ＪＶ用)'!AS11","v":"宗谷農振"},{"$f":"'別紙１－③ (ＪＶ用)'!AT11","v":"宗谷総合振興局長"},{"$f":"'別紙１－③ (ＪＶ用)'!AU11","v":"soya.chosei1@pref.hokkaido.lg.jp"},{"$f":"'別紙１－③ (ＪＶ用)'!AV11","v":"0162-33-2535"}]
[null,null,null,null,null,null,null,null,"氏名",null,null,null,null,null,null,null,null,null,null,null,null,null,null,null,null,null,null,null,null,null,null,null,null,null,null,null,null,null,null,null,null,null,null,{"$f":"'別紙１－③ (ＪＶ用)'!AR12","v":11},{"$f":"'別紙１－③ (ＪＶ用)'!AS12","v":"オホ調整"},{"$f":"'別紙１－③ (ＪＶ用)'!AT12","v":"オホーツク総合振興局長"},{"$f":"'別紙１－③ (ＪＶ用)'!AU12","v":"okhotsk.chosei1@pref.hokkaido.lg.jp"},{"$f":"'別紙１－③ (ＪＶ用)'!AV12","v":"0152-41-0670"}]
[null,null,null,null,null,null,null,null,null,null,null,null,null,null,null,null,null,null,null,null,null,null,null,null,null,null,null,null,null,null,null,null,null,null,null,null,null,null,null,null,null,null,null,{"$f":"'別紙１－③ (ＪＶ用)'!AR13","v":12},{"$f":"'別紙１－③ (ＪＶ用)'!AS13","v":"十勝調整"},{"$f":"'別紙１－③ (ＪＶ用)'!AT13","v":"十勝総合振興局長"},{"$f":"'別紙１－③ (ＪＶ用)'!AU13","v":"tokachi.chosei1@pref.hokkaido.lg.jp"},{"$f":"'別紙１－③ (ＪＶ用)'!AV13","v":"0155-27-8619"}]
[null,null,null,null,null,null,null,null,null,null,null,null,null,null,null,null,null,null,null,null,null,null,null,null,null,null,null,null,null,null,null,null,null,null,null,null,null,null,null,null,null,null,null,{"$f":"'別紙１－③ (ＪＶ用)'!AR14","v":13},{"$f":"'別紙１－③ (ＪＶ用)'!AS14","v":"釧路農振"},{"$f":"'別紙１－③ (ＪＶ用)'!AT14","v":"釧路総合振興局長"},{"$f":"'別紙１－③ (ＪＶ用)'!AU14","v":"kushiro.tyosei1@pref.hokkaido.lg.jp"},{"$f":"'別紙１－③ (ＪＶ用)'!AV14","v":"0154-43-9231"}]
[null,{"$f":"AE8","v":"00:00:00"},null,null,null,null,null,null,{"$f":"\"に開札予定の次の\"&IF(AD2=\"工事\",AH2,AH3)&\"について、落札者となった\"","v":"に開札予定の次の委託について、落札者となった"},null,null,null,null,null,null,null,null,null,null,null,null,null,null,null,null,null,null,null,null,null,null,null,null,null,null,null,null,null,null,null,null,null,null,{"$f":"'別紙１－③ (ＪＶ用)'!AR15","v":14},{"$f":"'別紙１－③ (ＪＶ用)'!AS15","v":"根室農振"},{"$f":"'別紙１－③ (ＪＶ用)'!AT15","v":"根室振興局長"},{"$f":"'別紙１－③ (ＪＶ用)'!AU15","v":"nemuro.nousonshinkou2@pref.hokkaido.lg.jp"},{"$f":"'別紙１－③ (ＪＶ用)'!AV15","v":"0153-24-5720"}]
["場合の契約方法を、次のとおり申し出ます。",null,null,null,null,null,null,null,null,null,null,null,null,null,null,null,null,null,null,null,null,null,null,null,null,null,null,null,null,null,null,null,null,null,null,null,null,null,null,null,null,null,null,{"$f":"'別紙１－③ (ＪＶ用)'!AR16","v":15},{"$f":"'別紙１－③ (ＪＶ用)'!AS16","v":"農政部"},{"$f":"'別紙１－③ (ＪＶ用)'!AT16","v":"農政部長"},{"$f":"'別紙１－③ (ＪＶ用)'!AU16","v":"-"},{"$f":"'別紙１－③ (ＪＶ用)'!AV16","v":"-"}]
[null,null,null,null,null,null,null,null,null,null,null,null,null,null,null,null,null,null,null,null,null,null,null,null,null,null,null,null,null,null,null,null,null,null,null,null,null,null,null,null,"＜ファイル名用＞"]
["（",{"$f":"IF(AD2=\"工事\",\"工事番号\",\"業務番号\")","v":"業務番号"},null,null,"）",null,"（",null,null,null,null,"）",null,null,null,null,null,null,null,null,null,null,null,null,null,null,null,null,null,null,null,null,null,null,null,null,null,null,null,null,null,null,null,"発注機関",{"$f":"AD5","v":0}]
[null,{"$f":"IF(AD2=\"工事\",\"工事名\",\"業務名\")","v":"業務名"},null,null,null,null,null,null,null,null,null,null,null,null,null,null,null,null,null,null,null,null,null,null,null,null,null,"←案件名",null,null,null,null,null,null,null,null,null,null,null,null,null,null,null,"開札日",{"$f":"MONTH(AE8)&\"月\"&DAY(AE8)&\"日\"","v":"1月0日"},null,null,null,"チェック"]
[null,null,null,null,null,null,null,null,null,null,null,null,null,null,null,null,null,null,null,null,null,null,null,null,null,null,null,null,null,null,null,null,null,null,null,null,null,null,null,null,null,null,null,"整理番号",{"$f":"H18","v":0},null,null,"紙契約",false]
[null,null,null,null,null,null,null,null,null,null,null,null,null,null,null,null,null,null,null,null,null,null,null,null,null,null,null,"←どちらかにチェックしてください",null,null,null,null,null,null,null,null,null,null,null,null,null,null,null,"入札参加者名",{"$f":"P7","v":0},null,null,"電子契約",false]
[null,"契約方法\n等の申出",null,null,null,null,null,"紙での契約を希望します。",null,null,null,null,null,null,null,{"$f":"IF(AND($AW$20=TRUE,$AW$21=TRUE),\"←二重チェックされております。\",\"\")","v":""},null,null,null,null,null,null,null,null,null,null,null,null,null,null,null,null,null,null,null,null,null,null,null,null,null,null,null,"タイトル","契約に関する申出書"]
[null,null,null,null,null,null,null,"電子契約を希望します。",null,null,null,null,null,null,null,{"$f":"IF(AND($AW$20=TRUE,$AW$21=TRUE),\"←二重チェックされております。\",\"\")","v":""}]
[null,null,null,null,null,null,null,"なお、契約書送付先のメールアドレス等は、次のとおりです。"]
[null,"（代表者）",null,null,null,null,"締結\n権限者","氏名",null,null,null,null,null,null,null,null,null,null,null,null,null,null,null,null,null,null,null,null,"・発注者から契約担当→締結権限者の順に署名依頼のメールが届きます。\n・締結権限者のみの記載でも契約締結は可能です。"]
[]
[null,null,null,null,null,null,null,"メール\nアドレス"]
[]
[]
[null,null,null,null,null,null,"契約担当者","氏名"]
[]
[null,null,null,null,null,null,null,"メール\nアドレス"]
[]
[]
[null,"（構成員1）",null,null,null,null,"締結\n権限者","氏名"]
[]
[null,null,null,null,null,null,null,"メール\nアドレス"]
[]
[]
[null,"（構成員2）",null,null,null,null,"締結\n権限者","氏名"]
[]
[null,null,null,null,null,null,null,"メール\nアドレス"]
[]
[]
["連絡先"]
[null,null,"担当者",null,null,"（所属）"]
[null,null,null,null,null,"（職・氏名）",null,null,null,null,null,null,null,null,null,null,"・"]
[null,null,null,null,null,"（電話番号）",null,null,null,null,null,null,null,null,null,"－",null,null,null,null,"－"]
[]
[]
["（留意事項）"]
[null,"※",{"$f":"\"この申出書は、入札金額等の送信時に、\"&IF(AD2=\"工事\",\"工事\",\"委託\")&\"費内訳書と併せて提出してください。\"","v":"この申出書は、入札金額等の送信時に、委託費内訳書と併せて提出してください。"}]
[null,null,"なお、添付漏れの場合でも、入札書が無効となることはありませんが、落札者の決定後、"]
[null,null,"速やかに、契約締結続きを行う必要があるため、忘れずに提出してください。"]
[null,"※","紙参加の場合は、必要事項を記入の上、開札日に持参してください。"]